[Event "Titled Tuesday Blitz April 19 Late 2022"]
[White "Koutlas, Nikolaos"]
[Black "Ostrovskiy, Aleksandr"]
[WhiteFideId "25827138"]
[BlackFideId "2034239"]
[WhiteElo "1645"]
[BlackElo "2340"]
[Result "0-1"]
[Round "06"]
[TimeControl "180+1"]
[Date "2022.04.19"]
[WhiteClock "0:00:11"]
[BlackClock "0:00:07"]

1. Nf3 {[%clk 0:03:00]}  g6 {[%clk 0:02:59]} 2. c4 {[%clk 0:03:00]}  Bg7 {[%clk 0:03:00]} 3. Nc3 {[%clk 0:03:00]}  e6 {[%clk 0:03:01]} 4. h4 {[%clk 0:03:00]}  Ne7 {[%clk 0:03:02]} 5. h5 {[%clk 0:02:59]}  d5 {[%clk 0:02:55]} 6. h6 {[%clk 0:02:59]}  Bf6 {[%clk 0:02:55]} 7. d4 {[%clk 0:02:58]}  c5 {[%clk 0:02:52]} 8. dxc5 {[%clk 0:02:44]}  Nbc6 {[%clk 0:02:41]} 9. e4 {[%clk 0:02:36]}  O-O {[%clk 0:01:29]} 10. cxd5 {[%clk 0:02:32]}  exd5 {[%clk 0:01:29]} 11. exd5 {[%clk 0:02:33]}  Bxc3+ {[%clk 0:01:29]} 12. bxc3 {[%clk 0:02:31]}  Nxd5 {[%clk 0:01:30]} 13. Bg5 {[%clk 0:02:06]}  Re8+ {[%clk 0:01:24]} 14. Be2 {[%clk 0:02:06]}  f6 {[%clk 0:01:23]} 15. Bd2 {[%clk 0:01:53]}  Qe7 {[%clk 0:01:15]} 16. Kf1 {[%clk 0:01:50]}  Be6 {[%clk 0:01:14]} 17. Nd4 {[%clk 0:01:38]}  Bf7 {[%clk 0:01:11]} 18. Nxc6 {[%clk 0:01:25]}  bxc6 {[%clk 0:01:11]} 19. c4 {[%clk 0:01:25]}  Nc7 {[%clk 0:01:09]} 20. Bc3 {[%clk 0:01:16]}  Rad8 {[%clk 0:01:07]} 21. Qc2 {[%clk 0:01:13]}  Ne6 {[%clk 0:01:02]} 22. Re1 {[%clk 0:01:06]}  Nf4 {[%clk 0:00:56]} 23. Bf3 {[%clk 0:00:57]}  Qxc5 {[%clk 0:00:26]} 24. Rxe8+ {[%clk 0:00:50]}  Rxe8 {[%clk 0:00:27]} 25. Bxf6 {[%clk 0:00:41]}  Nd3 {[%clk 0:00:11]} 26. Kg1 {[%clk 0:00:25]}  Re1+ {[%clk 0:00:06]} 27. Kh2 {[%clk 0:00:25]}  Qd6+ {[%clk 0:00:07]} 28. g3 {[%clk 0:00:21]}  Rxh1+ {[%clk 0:00:06]} 29. Bxh1 {[%clk 0:00:18]}  Qxf6 {[%clk 0:00:03]} 30. Qxd3 {[%clk 0:00:18]}  Qxf2+ {[%clk 0:00:03]} 31. Bg2 {[%clk 0:00:19]}  Qf6 {[%clk 0:00:03]} 32. Bxc6 {[%clk 0:00:15]}  Qxc6 {[%clk 0:00:02]} 33. Qd8+ {[%clk 0:00:14]}  Qe8 {[%clk 0:00:02]} 34. Qd4 {[%clk 0:00:14]}  Qe2+ {[%clk 0:00:02]} 35. Kg1 {[%clk 0:00:13]}  Qe1+ {[%clk 0:00:02]} 36. Kh2 {[%clk 0:00:13]}  Kf8 {[%clk 0:00:03]} 37. Qh8+ {[%clk 0:00:12]}  Ke7 {[%clk 0:00:03]} 38. Qxh7 {[%clk 0:00:11]}  Qe2+ {[%clk 0:00:03]} 39. Kg1 {[%clk 0:00:11]}  Qe1+ {[%clk 0:00:04]} 40. Kh2 {[%clk 0:00:11]}  Qe2+ {[%clk 0:00:05]} 41. Kg1 {[%clk 0:00:11]}  Qe3+ {[%clk 0:00:05]} 42. Kh2 {[%clk 0:00:11]}  Qd2+ {[%clk 0:00:05]} 43. Kg1 {[%clk 0:00:11]}  Qd4+ {[%clk 0:00:05]} 44. Kh2 {[%clk 0:00:11]}  Qb2+ {[%clk 0:00:05]} 45. Kg1 {[%clk 0:00:11]}  Qf6 {[%clk 0:00:05]} 46. c5 {[%clk 0:00:06]}  Kd7 {[%clk 0:00:04]} 47. Qg7 {[%clk 0:00:04]}  Qxg7 {[%clk 0:00:04]} 48. hxg7 {[%clk 0:00:05]}  Kc6 {[%clk 0:00:05]} 49. Kf2 {[%clk 0:00:06]}  Bxa2 {[%clk 0:00:05]} 50. Ke3 {[%clk 0:00:06]}  Kxc5 {[%clk 0:00:05]} 51. Kf4 {[%clk 0:00:07]}  a5 {[%clk 0:00:04]} 52. Kg5 {[%clk 0:00:07]}  a4 {[%clk 0:00:05]} 53. Kxg6 {[%clk 0:00:07]}  a3 {[%clk 0:00:05]} 54. Kh7 {[%clk 0:00:08]}  Bb3 {[%clk 0:00:05]} 55. g8=Q {[%clk 0:00:08]}  Bxg8+ {[%clk 0:00:05]} 56. Kxg8 {[%clk 0:00:09]}  a2 {[%clk 0:00:06]} 57. g4 {[%clk 0:00:10]}  a1=Q {[%clk 0:00:07]} 58. g5 {[%clk 0:00:10]}  Qa6 {[%clk 0:00:06]} 59. g6 {[%clk 0:00:11]}  Qxg6+ {[%clk 0:00:07]} 0-1


[Site "https://www.chess.com"]

[Event "Titled Tuesday Blitz April 19 Late 2022"]
[White "Kujawski, Adam"]
[Black "Carrasco Miranda, Andres"]
[WhiteFideId "1100920"]
[BlackFideId "3405990"]
[WhiteElo "2053"]
[BlackElo "2177"]
[Result "1-0"]
[Round "06"]
[TimeControl "180+1"]
[Date "2022.04.19"]
[WhiteClock "0:00:43"]
[BlackClock "0:00:20"]

1. e4 {[%clk 0:03:00]}  c5 {[%clk 0:02:31]} 2. Nf3 {[%clk 0:03:00]}  d6 {[%clk 0:02:31]} 3. d4 {[%clk 0:02:59]}  cxd4 {[%clk 0:02:32]} 4. Nxd4 {[%clk 0:03:00]}  Nf6 {[%clk 0:02:32]} 5. Nc3 {[%clk 0:03:00]}  a6 {[%clk 0:02:32]} 6. Bg5 {[%clk 0:03:00]}  Nbd7 {[%clk 0:02:32]} 7. Bc4 {[%clk 0:02:59]}  Qb6 {[%clk 0:02:31]} 8. Qd2 {[%clk 0:02:57]}  Qxb2 {[%clk 0:02:31]} 9. Rb1 {[%clk 0:02:54]}  Qa3 {[%clk 0:02:31]} 10. O-O {[%clk 0:02:51]}  Qc5 {[%clk 0:02:28]} 11. Bd5 {[%clk 0:02:45]}  e6 {[%clk 0:01:58]} 12. Bxe6 {[%clk 0:02:28]}  fxe6 {[%clk 0:01:57]} 13. Nxe6 {[%clk 0:02:29]}  Qc4 {[%clk 0:01:49]} 14. Nd5 {[%clk 0:02:23]}  Nxd5 {[%clk 0:01:47]} 15. exd5 {[%clk 0:02:22]}  Ne5 {[%clk 0:01:41]} 16. f4 {[%clk 0:02:18]}  Bxe6 {[%clk 0:01:33]} 17. dxe6 {[%clk 0:02:12]}  Ng4 {[%clk 0:01:17]} 18. Rxb7 {[%clk 0:02:01]}  h6 {[%clk 0:01:09]} 19. e7 {[%clk 0:01:45]}  hxg5 {[%clk 0:01:08]} 20. exf8=Q+ {[%clk 0:01:44]}  Kxf8 {[%clk 0:01:01]} 21. Qxd6+ {[%clk 0:00:58]}  Kg8 {[%clk 0:00:57]} 22. Rc7 {[%clk 0:00:56]}  Qe2 {[%clk 0:00:29]} 23. Qd5+ {[%clk 0:00:45]}  Kh7 {[%clk 0:00:27]} 24. Qf5+ {[%clk 0:00:43]}  Kg8 {[%clk 0:00:20]} 25. Qf7+ {[%clk 0:00:43]}  Kh7 {[%clk 0:00:20]} 26. Qxg7# {[%clk 0:00:43]} 1-0


[Site "https://www.chess.com"]

[Event "Titled Tuesday Blitz April 19 Late 2022"]
[White "Ladan, Nicholas"]
[Black "Arnold, Ken"]
[WhiteFideId "30918855"]
[BlackFideId "2056836"]
[WhiteElo "2167"]
[BlackElo "2108"]
[Result "0-1"]
[Round "06"]
[TimeControl "180+1"]
[Date "2022.04.19"]
[WhiteClock "0:01:09"]
[BlackClock "0:01:20"]

1. d4 {[%clk 0:03:00]}  Nf6 {[%clk 0:02:59]} 2. Bg5 {[%clk 0:03:00]}  e6 {[%clk 0:02:59]} 3. e4 {[%clk 0:03:00]}  d6 {[%clk 0:02:56]} 4. Nf3 {[%clk 0:02:58]}  Be7 {[%clk 0:02:55]} 5. Nc3 {[%clk 0:02:57]}  Nbd7 {[%clk 0:02:52]} 6. Bd3 {[%clk 0:02:57]}  e5 {[%clk 0:02:51]} 7. O-O {[%clk 0:02:56]}  O-O {[%clk 0:02:50]} 8. Qd2 {[%clk 0:02:51]}  c6 {[%clk 0:02:49]} 9. Rad1 {[%clk 0:02:49]}  Qc7 {[%clk 0:02:49]} 10. dxe5 {[%clk 0:02:45]}  dxe5 {[%clk 0:02:44]} 11. Nh4 {[%clk 0:02:45]}  Nc5 {[%clk 0:02:40]} 12. f4 {[%clk 0:02:32]}  Nxd3 {[%clk 0:02:36]} 13. cxd3 {[%clk 0:02:30]}  Bc5+ {[%clk 0:02:29]} 14. Kh1 {[%clk 0:02:28]}  Ng4 {[%clk 0:02:24]} 15. fxe5 {[%clk 0:02:15]}  f6 {[%clk 0:01:49]} 16. d4 {[%clk 0:02:08]}  fxg5 {[%clk 0:01:42]} 17. Qxg5 {[%clk 0:01:59]}  Qe7 {[%clk 0:01:25]} 18. Rxf8+ {[%clk 0:01:54]}  Qxf8 {[%clk 0:01:24]} 19. Kg1 {[%clk 0:01:13]}  Bxd4+ {[%clk 0:01:21]} 20. Rxd4 {[%clk 0:01:09]}  Qf2+ {[%clk 0:01:19]} 21. Kh1 {[%clk 0:01:09]}  Qf1# {[%clk 0:01:20]} 0-1


[Site "https://www.chess.com"]

[Event "Titled Tuesday Blitz April 19 Late 2022"]
[White "Leitao, Rafael"]
[Black "Bibasa, Bob"]
[WhiteFideId "2101246"]
[BlackFideId "10000240"]
[WhiteElo "2609"]
[BlackElo "2056"]
[Result "1-0"]
[Round "06"]
[TimeControl "180+1"]
[Date "2022.04.19"]
[WhiteClock "0:00:24"]
[BlackClock "0:00:25"]

1. e4 {[%clk 0:03:00]}  c5 {[%clk 0:02:59]} 2. Nf3 {[%clk 0:02:59]}  d6 {[%clk 0:02:59]} 3. d4 {[%clk 0:02:59]}  cxd4 {[%clk 0:03:00]} 4. Nxd4 {[%clk 0:03:00]}  Nf6 {[%clk 0:03:00]} 5. Nc3 {[%clk 0:03:00]}  a6 {[%clk 0:03:01]} 6. Be2 {[%clk 0:03:01]}  e5 {[%clk 0:03:01]} 7. Nb3 {[%clk 0:03:01]}  Be6 {[%clk 0:03:00]} 8. Be3 {[%clk 0:03:00]}  Be7 {[%clk 0:03:00]} 9. Nd5 {[%clk 0:02:59]}  Nxd5 {[%clk 0:02:57]} 10. exd5 {[%clk 0:02:59]}  Bf5 {[%clk 0:02:57]} 11. Qd2 {[%clk 0:02:58]}  Nd7 {[%clk 0:02:56]} 12. O-O {[%clk 0:02:54]}  O-O {[%clk 0:02:54]} 13. Na5 {[%clk 0:02:53]}  Qc7 {[%clk 0:02:52]} 14. c4 {[%clk 0:02:52]}  Rfc8 {[%clk 0:02:44]} 15. b4 {[%clk 0:02:42]}  Bf6 {[%clk 0:02:33]} 16. Rac1 {[%clk 0:02:40]}  b6 {[%clk 0:02:27]} 17. Nc6 {[%clk 0:02:38]}  Nb8 {[%clk 0:02:27]} 18. c5 {[%clk 0:02:29]}  bxc5 {[%clk 0:02:24]} 19. bxc5 {[%clk 0:02:28]}  Nxc6 {[%clk 0:02:23]} 20. dxc6 {[%clk 0:02:23]}  dxc5 {[%clk 0:02:19]} 21. Rxc5 {[%clk 0:02:18]}  Rd8 {[%clk 0:02:10]} 22. Qa5 {[%clk 0:01:54]}  Qxa5 {[%clk 0:01:53]} 23. Rxa5 {[%clk 0:01:55]}  Rdc8 {[%clk 0:01:53]} 24. Rc1 {[%clk 0:01:47]}  Be4 {[%clk 0:01:53]} 25. Rac5 {[%clk 0:01:39]}  Be7 {[%clk 0:01:44]} 26. Rxe5 {[%clk 0:01:33]}  Ba3 {[%clk 0:01:40]} 27. Rxe4 {[%clk 0:01:07]}  Bxc1 {[%clk 0:01:38]} 28. Bxc1 {[%clk 0:01:07]}  Rxc6 {[%clk 0:01:38]} 29. Bf4 {[%clk 0:00:52]}  Rc2 {[%clk 0:01:36]} 30. a4 {[%clk 0:00:50]}  f5 {[%clk 0:01:30]} 31. Bc4+ {[%clk 0:00:47]}  Kh8 {[%clk 0:01:26]} 32. Rd4 {[%clk 0:00:46]}  h6 {[%clk 0:01:19]} 33. h4 {[%clk 0:00:45]}  Kh7 {[%clk 0:01:10]} 34. h5 {[%clk 0:00:45]}  Ra7 {[%clk 0:01:00]} 35. Be6 {[%clk 0:00:39]}  Rc5 {[%clk 0:00:57]} 36. Bd6 {[%clk 0:00:37]}  Ra5 {[%clk 0:00:51]} 37. f4 {[%clk 0:00:34]}  g6 {[%clk 0:00:48]} 38. Be5 {[%clk 0:00:33]}  Re7 {[%clk 0:00:44]} 39. Bb3 {[%clk 0:00:29]}  g5 {[%clk 0:00:36]} 40. Rd8 {[%clk 0:00:26]}  Rexe5 {[%clk 0:00:30]} 41. fxe5 {[%clk 0:00:26]}  Rxe5 {[%clk 0:00:31]} 42. Rd7+ {[%clk 0:00:27]}  Kh8 {[%clk 0:00:30]} 43. Rd6 {[%clk 0:00:27]}  Kg7 {[%clk 0:00:27]} 44. Rg6+ {[%clk 0:00:26]}  Kf8 {[%clk 0:00:26]} 45. Rxh6 {[%clk 0:00:25]}  a5 {[%clk 0:00:27]} 46. Rg6 {[%clk 0:00:25]}  Re3 {[%clk 0:00:25]} 47. h6 {[%clk 0:00:24]} 1-0


[Site "https://www.chess.com"]

[Event "Titled Tuesday Blitz April 19 Late 2022"]
[White "Lopez Del Alamo, Antonio"]
[Black "Constantinou, Peter"]
[WhiteFideId "2227339"]
[BlackFideId "413038"]
[WhiteElo "2082"]
[BlackElo "2230"]
[Result "1-0"]
[Round "06"]
[TimeControl "180+1"]
[Date "2022.04.19"]
[WhiteClock "0:00:13"]
[BlackClock "0:00:01"]

1. e4 {[%clk 0:03:00]}  c5 {[%clk 0:02:59]} 2. Nf3 {[%clk 0:02:59]}  e6 {[%clk 0:02:59]} 3. d3 {[%clk 0:02:59]}  b6 {[%clk 0:02:58]} 4. g3 {[%clk 0:02:59]}  Bb7 {[%clk 0:02:59]} 5. Bg2 {[%clk 0:02:59]}  d6 {[%clk 0:02:57]} 6. O-O {[%clk 0:02:59]}  Be7 {[%clk 0:02:58]} 7. c3 {[%clk 0:03:00]}  Nf6 {[%clk 0:02:58]} 8. Re1 {[%clk 0:03:00]}  Qc7 {[%clk 0:02:56]} 9. a3 {[%clk 0:03:01]}  Nbd7 {[%clk 0:02:55]} 10. b4 {[%clk 0:03:01]}  h6 {[%clk 0:02:55]} 11. Nbd2 {[%clk 0:03:00]}  O-O {[%clk 0:02:53]} 12. Bb2 {[%clk 0:02:59]}  b5 {[%clk 0:02:48]} 13. Nb3 {[%clk 0:02:51]}  Nb6 {[%clk 0:02:43]} 14. Na5 {[%clk 0:02:50]}  Na4 {[%clk 0:02:43]} 15. Rb1 {[%clk 0:02:47]}  Nxb2 {[%clk 0:01:55]} 16. Rxb2 {[%clk 0:02:46]}  Bc8 {[%clk 0:01:55]} 17. d4 {[%clk 0:02:41]}  Rb8 {[%clk 0:01:53]} 18. e5 {[%clk 0:02:13]}  dxe5 {[%clk 0:01:48]} 19. Nxe5 {[%clk 0:02:14]}  c4 {[%clk 0:01:27]} 20. a4 {[%clk 0:01:57]}  a6 {[%clk 0:01:26]} 21. axb5 {[%clk 0:01:56]}  axb5 {[%clk 0:01:27]} 22. Ra2 {[%clk 0:01:52]}  Bd7 {[%clk 0:01:26]} 23. Nxd7 {[%clk 0:01:51]}  Qxd7 {[%clk 0:01:20]} 24. Nc6 {[%clk 0:01:44]}  Rbc8 {[%clk 0:01:20]} 25. Ne5 {[%clk 0:01:18]}  Qc7 {[%clk 0:01:12]} 26. Qa1 {[%clk 0:01:19]}  Bd6 {[%clk 0:01:00]} 27. Ra7 {[%clk 0:01:17]}  Qd8 {[%clk 0:00:37]} 28. Nc6 {[%clk 0:01:08]}  Qe8 {[%clk 0:00:38]} 29. Qa6 {[%clk 0:01:05]}  Kh8 {[%clk 0:00:30]} 30. d5 {[%clk 0:00:59]}  e5 {[%clk 0:00:24]} 31. f4 {[%clk 0:00:56]}  Nd7 {[%clk 0:00:12]} 32. Qb7 {[%clk 0:00:52]}  Nb8 {[%clk 0:00:08]} 33. fxe5 {[%clk 0:00:49]}  Nxc6 {[%clk 0:00:08]} 34. dxc6 {[%clk 0:00:47]}  Bxe5 {[%clk 0:00:08]} 35. Raa1 {[%clk 0:00:43]}  f6 {[%clk 0:00:07]} 36. Rad1 {[%clk 0:00:42]}  Rf7 {[%clk 0:00:07]} 37. Qa6 {[%clk 0:00:38]}  Rfc7 {[%clk 0:00:06]} 38. Qxb5 {[%clk 0:00:35]}  Qf7 {[%clk 0:00:06]} 39. Bd5 {[%clk 0:00:33]}  Qh5 {[%clk 0:00:06]} 40. Qxc4 {[%clk 0:00:32]}  Qg5 {[%clk 0:00:04]} 41. b5 {[%clk 0:00:29]}  Rb8 {[%clk 0:00:03]} 42. Bg2 {[%clk 0:00:28]}  h5 {[%clk 0:00:02]} 43. Rd5 {[%clk 0:00:26]}  h4 {[%clk 0:00:02]} 44. Qxh4+ {[%clk 0:00:25]}  Qxh4 {[%clk 0:00:02]} 45. gxh4 {[%clk 0:00:25]}  Bxc3 {[%clk 0:00:03]} 46. Rb1 {[%clk 0:00:21]}  Ba5 {[%clk 0:00:03]} 47. Rd7 {[%clk 0:00:13]}  Bb6+ {[%clk 0:00:02]} 48. Kf1 {[%clk 0:00:13]}  Kg8 {[%clk 0:00:02]} 49. Rbd1 {[%clk 0:00:11]}  Kf8 {[%clk 0:00:02]} 50. Rd8+ {[%clk 0:00:11]}  Rxd8 {[%clk 0:00:02]} 51. Rxd8+ {[%clk 0:00:12]}  Ke7 {[%clk 0:00:03]} 52. Rb8 {[%clk 0:00:13]}  Bc5 {[%clk 0:00:01]} 53. b6 {[%clk 0:00:13]} 1-0


[Site "https://www.chess.com"]

[Event "Titled Tuesday Blitz April 19 Late 2022"]
[White "Mangialardo, Tiago Carvalho"]
[Black "Kaganskiy, Gleb"]
[WhiteFideId "2130718"]
[BlackFideId "4132025"]
[WhiteElo "2059"]
[BlackElo "2165"]
[Result "0-1"]
[Round "06"]
[TimeControl "180+1"]
[Date "2022.04.19"]
[WhiteClock "0:00:03"]
[BlackClock "0:01:27"]

1. e4 {[%clk 0:02:12]}  g6 {[%clk 0:02:58]} 2. d4 {[%clk 0:02:12]}  Nf6 {[%clk 0:02:57]} 3. Nc3 {[%clk 0:02:10]}  d5 {[%clk 0:02:55]} 4. exd5 {[%clk 0:02:07]}  Nxd5 {[%clk 0:02:50]} 5. Nxd5 {[%clk 0:01:59]}  Qxd5 {[%clk 0:02:47]} 6. Nf3 {[%clk 0:01:46]}  Bg7 {[%clk 0:02:42]} 7. c3 {[%clk 0:01:44]}  O-O {[%clk 0:02:39]} 8. Be2 {[%clk 0:01:44]}  c5 {[%clk 0:02:28]} 9. Be3 {[%clk 0:01:23]}  cxd4 {[%clk 0:02:18]} 10. Bxd4 {[%clk 0:01:20]}  Nc6 {[%clk 0:02:15]} 11. Bxg7 {[%clk 0:01:15]}  Qxd1+ {[%clk 0:02:16]} 12. Rxd1 {[%clk 0:01:14]}  Kxg7 {[%clk 0:02:17]} 13. Bc4 {[%clk 0:00:41]}  Na5 {[%clk 0:02:03]} 14. Bd3 {[%clk 0:00:29]}  Be6 {[%clk 0:02:00]} 15. b3 {[%clk 0:00:28]}  f6 {[%clk 0:01:55]} 16. Ke2 {[%clk 0:00:28]}  Nc6 {[%clk 0:01:52]} 17. h4 {[%clk 0:00:25]}  Bg4 {[%clk 0:01:50]} 18. Ke3 {[%clk 0:00:18]}  e5 {[%clk 0:01:47]} 19. Rd2 {[%clk 0:00:16]}  Rad8 {[%clk 0:01:44]} 20. Ne1 {[%clk 0:00:09]}  Rfe8 {[%clk 0:01:38]} 21. f3 {[%clk 0:00:09]}  Be6 {[%clk 0:01:36]} 22. g4 {[%clk 0:00:09]}  Ne7 {[%clk 0:01:34]} 23. Nc2 {[%clk 0:00:07]}  Nd5+ {[%clk 0:01:33]} 24. Kf2 {[%clk 0:00:04]}  Nxc3 {[%clk 0:01:32]} 25. Nb4 {[%clk 0:00:03]}  a5 {[%clk 0:01:30]} 26. Nc2 {[%clk 0:00:02]}  e4 {[%clk 0:01:30]} 27. fxe4 {[%clk 0:00:01]}  Nxe4+ {[%clk 0:01:29]} 28. Ke3 {[%clk 0:00:02]}  Nxd2 {[%clk 0:01:28]} 29. Kxd2 {[%clk 0:00:03]}  Bxg4 {[%clk 0:01:27]} 0-1


[Site "https://www.chess.com"]

[Event "Titled Tuesday Blitz April 19 Late 2022"]
[White "Marin Masis, Jose Esteban"]
[Black "Kalogridis, Antonios"]
[WhiteFideId "6508146"]
[BlackFideId "25833901"]
[WhiteElo "1710"]
[BlackElo "1596"]
[Result "0-1"]
[Round "06"]
[TimeControl "180+1"]
[Date "2022.04.19"]
[WhiteClock "0:00:04"]
[BlackClock "0:01:31"]

1. e4 {[%clk 0:03:00]}  a6 {[%clk 0:02:59]} 2. d4 {[%clk 0:02:59]}  e6 {[%clk 0:03:00]} 3. Nf3 {[%clk 0:02:58]}  d5 {[%clk 0:03:00]} 4. exd5 {[%clk 0:02:58]}  exd5 {[%clk 0:03:00]} 5. Nc3 {[%clk 0:02:58]}  Nf6 {[%clk 0:03:00]} 6. Bd3 {[%clk 0:02:58]}  Bd6 {[%clk 0:02:59]} 7. O-O {[%clk 0:02:58]}  O-O {[%clk 0:02:59]} 8. Bg5 {[%clk 0:02:58]}  h6 {[%clk 0:03:00]} 9. Bh4 {[%clk 0:02:58]}  Bg4 {[%clk 0:02:58]} 10. h3 {[%clk 0:02:44]}  Bxf3 {[%clk 0:02:43]} 11. Qxf3 {[%clk 0:02:43]}  g5 {[%clk 0:02:43]} 12. Bg3 {[%clk 0:01:53]}  Kg7 {[%clk 0:02:40]} 13. Qf5 {[%clk 0:01:36]}  c6 {[%clk 0:02:36]} 14. Be5 {[%clk 0:01:32]}  Rh8 {[%clk 0:02:28]} 15. f4 {[%clk 0:01:26]}  gxf4 {[%clk 0:02:06]} 16. Rxf4 {[%clk 0:01:19]}  Be7 {[%clk 0:01:59]} 17. Raf1 {[%clk 0:01:02]}  Nd7 {[%clk 0:01:56]} 18. Na4 {[%clk 0:00:24]}  Kf8 {[%clk 0:01:51]} 19. Kh1 {[%clk 0:00:18]}  Rg8 {[%clk 0:01:45]} 20. h4 {[%clk 0:00:13]}  h5 {[%clk 0:01:42]} 21. Nc5 {[%clk 0:00:09]}  Nxc5 {[%clk 0:01:38]} 22. dxc5 {[%clk 0:00:10]}  Rg6 {[%clk 0:01:38]} 23. Qxg6 {[%clk 0:00:07]}  fxg6 {[%clk 0:01:37]} 24. Bxf6 {[%clk 0:00:07]}  Bxf6 {[%clk 0:01:33]} 25. Rxf6+ {[%clk 0:00:08]}  Ke7 {[%clk 0:01:34]} 26. Rf7+ {[%clk 0:00:08]}  Ke6 {[%clk 0:01:33]} 27. R1f6+ {[%clk 0:00:05]}  Qxf6 {[%clk 0:01:33]} 28. Rxf6+ {[%clk 0:00:05]}  Kxf6 {[%clk 0:01:34]} 29. Kg1 {[%clk 0:00:05]}  Re8 {[%clk 0:01:34]} 30. Kf2 {[%clk 0:00:06]}  Re6 {[%clk 0:01:32]} 31. g3 {[%clk 0:00:06]}  Ke5 {[%clk 0:01:32]} 32. Kf3 {[%clk 0:00:07]}  Kd4 {[%clk 0:01:32]} 33. Bf1 {[%clk 0:00:06]}  Kxc5 {[%clk 0:01:32]} 34. Bh3 {[%clk 0:00:06]}  Rf6+ {[%clk 0:01:32]} 35. Kg2 {[%clk 0:00:05]}  Kd4 {[%clk 0:01:32]} 36. Bc8 {[%clk 0:00:05]}  b5 {[%clk 0:01:31]} 37. Bxa6 {[%clk 0:00:05]}  Rf8 {[%clk 0:01:29]} 38. Bb7 {[%clk 0:00:05]}  Kc5 {[%clk 0:01:30]} 39. a4 {[%clk 0:00:03]}  Kb6 {[%clk 0:01:30]} 40. axb5 {[%clk 0:00:04]}  Kxb7 {[%clk 0:01:30]} 41. bxc6+ {[%clk 0:00:04]}  Kxc6 {[%clk 0:01:31]} 0-1


[Site "https://www.chess.com"]

[Event "Titled Tuesday Blitz April 19 Late 2022"]
[White "Martinez Alcantara, Jose Eduardo"]
[Black "Vasquez Schroeder, Rodrigo"]
[WhiteFideId "3805662"]
[BlackFideId "3400042"]
[WhiteElo "2690"]
[BlackElo "2561"]
[Result "0-1"]
[Round "06"]
[TimeControl "180+1"]
[Date "2022.04.19"]
[WhiteClock "0:00:02"]
[BlackClock "0:00:05"]

1. e4 {[%clk 0:03:00]}  c5 {[%clk 0:03:00]} 2. Nf3 {[%clk 0:03:01]}  d6 {[%clk 0:03:00]} 3. Bb5+ {[%clk 0:03:02]}  Bd7 {[%clk 0:02:55]} 4. Bxd7+ {[%clk 0:03:01]}  Qxd7 {[%clk 0:02:55]} 5. O-O {[%clk 0:03:01]}  Nc6 {[%clk 0:02:56]} 6. c3 {[%clk 0:03:02]}  Nf6 {[%clk 0:02:50]} 7. Re1 {[%clk 0:03:02]}  e6 {[%clk 0:02:51]} 8. d4 {[%clk 0:03:03]}  cxd4 {[%clk 0:02:51]} 9. cxd4 {[%clk 0:03:04]}  d5 {[%clk 0:02:51]} 10. e5 {[%clk 0:03:04]}  Ne4 {[%clk 0:02:49]} 11. Nbd2 {[%clk 0:03:05]}  Nxd2 {[%clk 0:02:48]} 12. Bxd2 {[%clk 0:03:06]}  Bb4 {[%clk 0:02:48]} 13. Re3 {[%clk 0:03:04]}  O-O {[%clk 0:02:45]} 14. Rc1 {[%clk 0:02:56]}  Bxd2 {[%clk 0:02:45]} 15. Qxd2 {[%clk 0:02:57]}  Rfc8 {[%clk 0:02:45]} 16. h4 {[%clk 0:02:14]}  h6 {[%clk 0:02:37]} 17. h5 {[%clk 0:02:08]}  Ne7 {[%clk 0:02:37]} 18. Rcc3 {[%clk 0:01:59]}  Rxc3 {[%clk 0:02:36]} 19. bxc3 {[%clk 0:01:59]}  Rc8 {[%clk 0:02:33]} 20. g4 {[%clk 0:01:59]}  Qb5 {[%clk 0:02:28]} 21. Kh2 {[%clk 0:01:53]}  Rc6 {[%clk 0:02:24]} 22. Ne1 {[%clk 0:01:30]}  Qc4 {[%clk 0:02:11]} 23. Rf3 {[%clk 0:01:11]}  Rc8 {[%clk 0:01:43]} 24. Ng2 {[%clk 0:01:11]}  Rf8 {[%clk 0:01:37]} 25. Nf4 {[%clk 0:01:09]}  b6 {[%clk 0:01:26]} 26. Nh3 {[%clk 0:01:06]}  a5 {[%clk 0:01:23]} 27. g5 {[%clk 0:01:01]}  Nf5 {[%clk 0:01:14]} 28. Rxf5 {[%clk 0:01:01]}  exf5 {[%clk 0:01:14]} 29. gxh6 {[%clk 0:01:02]}  Qc6 {[%clk 0:01:11]} 30. hxg7 {[%clk 0:01:00]}  Kxg7 {[%clk 0:01:12]} 31. Qg5+ {[%clk 0:00:58]}  Kh8 {[%clk 0:01:07]} 32. Qe7 {[%clk 0:00:31]}  Qh6 {[%clk 0:00:52]} 33. f4 {[%clk 0:00:23]}  Kg8 {[%clk 0:00:50]} 34. Qh4 {[%clk 0:00:20]}  f6 {[%clk 0:00:45]} 35. Qg3+ {[%clk 0:00:18]}  Kf7 {[%clk 0:00:42]} 36. Qf3 {[%clk 0:00:19]}  Rd8 {[%clk 0:00:42]} 37. exf6 {[%clk 0:00:18]}  Qxf6 {[%clk 0:00:41]} 38. Ng5+ {[%clk 0:00:18]}  Kg7 {[%clk 0:00:41]} 39. Qe2 {[%clk 0:00:13]}  Kh6 {[%clk 0:00:39]} 40. Kg3 {[%clk 0:00:13]}  Rg8 {[%clk 0:00:32]} 41. Kf3 {[%clk 0:00:08]}  Rc8 {[%clk 0:00:20]} 42. Qe3 {[%clk 0:00:06]}  Kxh5 {[%clk 0:00:16]} 43. Kf2 {[%clk 0:00:05]}  Kg6 {[%clk 0:00:16]} 44. Nf3 {[%clk 0:00:06]}  Rh8 {[%clk 0:00:10]} 45. Qe2 {[%clk 0:00:04]}  Rh3 {[%clk 0:00:08]} 46. Qe8+ {[%clk 0:00:03]}  Kh6 {[%clk 0:00:07]} 47. Ng5 {[%clk 0:00:02]}  Rh4 {[%clk 0:00:07]} 48. Kf3 {[%clk 0:00:03]}  Rxf4+ {[%clk 0:00:06]} 49. Kxf4 {[%clk 0:00:02]}  Qxg5+ {[%clk 0:00:06]} 50. Kf3 {[%clk 0:00:01]}  Qg4+ {[%clk 0:00:07]} 51. Kf2 {[%clk 0:00:02]}  Qf4+ {[%clk 0:00:07]} 52. Kg1 {[%clk 0:00:02]}  Kg5 {[%clk 0:00:06]} 53. Qg8+ {[%clk 0:00:01]}  Kh4 {[%clk 0:00:06]} 54. Qxd5 {[%clk 0:00:02]}  Qe3+ {[%clk 0:00:05]} 55. Kg2 {[%clk 0:00:03]}  Qe2+ {[%clk 0:00:05]} 56. Kg1 {[%clk 0:00:03]}  f4 {[%clk 0:00:04]} 57. Qg8 {[%clk 0:00:02]}  f3 {[%clk 0:00:03]} 58. Qh7+ {[%clk 0:00:03]}  Kg4 {[%clk 0:00:03]} 59. Qg6+ {[%clk 0:00:03]}  Kf4 {[%clk 0:00:04]} 60. Qh6+ {[%clk 0:00:03]}  Ke4 {[%clk 0:00:04]} 61. Qg6+ {[%clk 0:00:03]}  Ke3 {[%clk 0:00:04]} 62. Qg5+ {[%clk 0:00:03]}  Kd3 {[%clk 0:00:05]} 63. Qf5+ {[%clk 0:00:02]}  Kxc3 {[%clk 0:00:05]} 0-1


[Site "https://www.chess.com"]